[Event "*** SCC Grand Prix: Titled Tuesday Blitz"]
[Site "Chess.com"]
[Date "2020.07.07"]
[Round "3"]
[White "Tactictic"]
[Black "AungTZ"]
[Result "0-1"]
[WhiteElo "2301"]
[BlackElo "2121"]
[TimeControl "180+1"]
[EndTime "10:29:12 PDT"]
[Termination "AungTZ won by resignation"]

1. e4 {[%clk 0:03:00.9]} 1... c5 {[%clk 0:02:59.6]} 2. Nf3 {[%clk 0:03:01.1]}
2... Nc6 {[%clk 0:02:59.7]} 3. d4 {[%clk 0:03:01.8]} 3... cxd4 {[%clk
0:02:59.6]} 4. Nxd4 {[%clk 0:03:02.7]} 4... Nf6 {[%clk 0:02:59.8]} 5. Nc3 {[%clk
0:03:03.2]} 5... d6 {[%clk 0:02:59.3]} 6. Bg5 {[%clk 0:03:03.1]} 6... e6 {[%clk
0:02:58.2]} 7. Qd2 {[%clk 0:03:02.1]} 7... a6 {[%clk 0:02:58.3]} 8. O-O-O {[%clk
0:02:56.2]} 8... h6 {[%clk 0:02:58.4]} 9. Bh4 {[%clk 0:02:48.9]} 9... Nxe4
{[%clk 0:02:57.4]} 10. Bxd8 {[%clk 0:02:29.3]} 10... Nxd2 {[%clk 0:02:56.1]} 11.
Rxd2 {[%clk 0:02:24.9]} 11... Kxd8 {[%clk 0:02:55]} 12. Bc4 {[%clk 0:02:21.7]}
12... Kc7 {[%clk 0:02:51.4]} 13. Bb3 {[%clk 0:02:19.4]} 13... Be7 {[%clk
0:02:50.6]} 14. f4 {[%clk 0:01:54.6]} 14... Bd7 {[%clk 0:02:39.9]} 15. Rhd1
{[%clk 0:01:46.3]} 15... Nxd4 {[%clk 0:02:33.6]} 16. Rxd4 {[%clk 0:01:47.2]}
16... Bc6 {[%clk 0:02:33.3]} 17. Ne4 {[%clk 0:01:44.8]} 17... e5 {[%clk
0:02:07.9]} 18. fxe5 {[%clk 0:01:32.7]} 18... dxe5 {[%clk 0:02:07.8]} 19. Rc4
{[%clk 0:01:33.6]} 19... b5 {[%clk 0:02:05.3]} 20. Rxc6+ {[%clk 0:01:33.7]}
20... Kxc6 {[%clk 0:02:05]} 21. Bd5+ {[%clk 0:01:34.3]} 21... Kc7 {[%clk
0:02:03.8]} 22. Bxa8 {[%clk 0:01:33.5]} 22... Rxa8 {[%clk 0:02:03.5]} 23. Rf1
{[%clk 0:01:31]} 23... f6 {[%clk 0:02:01.3]} 24. h4 {[%clk 0:01:25.1]} 24... Rd8
{[%clk 0:01:52.8]} 25. h5 {[%clk 0:01:23.6]} 25... Rd4 {[%clk 0:01:52.5]} 26.
Re1 {[%clk 0:01:19]} 26... f5 {[%clk 0:01:35.5]} 27. Ng3 {[%clk 0:01:17.5]}
27... Bg5+ {[%clk 0:01:35.1]} 28. Kb1 {[%clk 0:01:16.4]} 28... Rf4 {[%clk
0:01:32.4]} 29. a4 {[%clk 0:00:35.9]} 29... Bh4 {[%clk 0:01:29.2]} 30. Re3
{[%clk 0:00:34.1]} 30... e4 {[%clk 0:01:27.3]} 31. Ne2 {[%clk 0:00:29.5]} 31...
Rf2 {[%clk 0:01:24.6]} 32. g3 {[%clk 0:00:28.3]} 32... Bg5 {[%clk 0:01:23.8]}
33. Rc3+ {[%clk 0:00:28.5]} 33... Kd6 {[%clk 0:01:15]} 34. Nd4 {[%clk
0:00:18.5]} 34... Bf6 {[%clk 0:01:14]} 35. axb5 {[%clk 0:00:14.5]} 35... Bxd4
{[%clk 0:01:13.3]} 36. bxa6 {[%clk 0:00:14.9]} 36... Rd2 {[%clk 0:00:53]} 37.
Rc8 {[%clk 0:00:12.5]} 37... Kd7 {[%clk 0:00:51.5]} 38. Ra8 {[%clk 0:00:12.6]}
38... Bb6 {[%clk 0:00:49.7]} 39. Rg8 {[%clk 0:00:10.1]} 39... Kc6 {[%clk
0:00:48]} 40. Rxg7 {[%clk 0:00:10.2]} 40... Rd7 {[%clk 0:00:47.7]} 41. Rg6+
{[%clk 0:00:09.9]} 41... Kc7 {[%clk 0:00:46.8]} 42. Rxh6 {[%clk 0:00:09.9]}
42... Re7 {[%clk 0:00:46.9]} 43. Rg6 {[%clk 0:00:10]} 43... e3 {[%clk
0:00:46.8]} 44. h6 {[%clk 0:00:05.5]} 44... e2 {[%clk 0:00:46.8]} 45. Rg7 {[%clk
0:00:06.4]} 45... e1=Q+ {[%clk 0:00:46.6]} 46. Ka2 {[%clk 0:00:07.3]} 46... Qe6+
{[%clk 0:00:44.9]} 47. b3 {[%clk 0:00:06.7]} 47... Rxg7 {[%clk 0:00:44.1]} 48.
hxg7 {[%clk 0:00:07.6]} 48... Qg8 {[%clk 0:00:44.1]} 0-1

[Event "*** SCC Grand Prix: Titled Tuesday Blitz"]
[Site "Chess.com"]
[Date "2020.07.07"]
[Round "3"]
[White "CroissantNeuf"]
[Black "Chessmasterzt"]
[Result "0-1"]
[WhiteElo "2405"]
[BlackElo "2606"]
[TimeControl "180+1"]
[EndTime "10:29:13 PDT"]
[Termination "Chessmasterzt won on time"]

1. e4 {[%clk 0:02:37.8]} 1... d5 {[%clk 0:03:00]} 2. exd5 {[%clk 0:02:37.6]}
2... Nf6 {[%clk 0:03:00.5]} 3. Bb5+ {[%clk 0:02:36.4]} 3... Bd7 {[%clk
0:03:00.3]} 4. Be2 {[%clk 0:02:35.8]} 4... Nxd5 {[%clk 0:02:59.4]} 5. d4 {[%clk
0:02:36.4]} 5... Bf5 {[%clk 0:02:59.1]} 6. Nf3 {[%clk 0:02:35.9]} 6... e6 {[%clk
0:02:58.6]} 7. O-O {[%clk 0:02:35]} 7... Be7 {[%clk 0:02:58.6]} 8. a3 {[%clk
0:02:31]} 8... O-O {[%clk 0:02:57.1]} 9. c4 {[%clk 0:02:31.6]} 9... Nf6 {[%clk
0:02:57.6]} 10. Nc3 {[%clk 0:02:28.7]} 10... Ne4 {[%clk 0:02:57.7]} 11. Qb3
{[%clk 0:02:20.4]} 11... Nxc3 {[%clk 0:02:52.8]} 12. Qxc3 {[%clk 0:02:20.2]}
12... Bf6 {[%clk 0:02:44.1]} 13. Qb3 {[%clk 0:02:19.6]} 13... Nc6 {[%clk
0:02:39.3]} 14. Rd1 {[%clk 0:02:10.7]} 14... Bg4 {[%clk 0:02:11.7]} 15. d5
{[%clk 0:02:07.2]} 15... exd5 {[%clk 0:02:08.6]} 16. cxd5 {[%clk 0:02:07.2]}
16... Ne5 {[%clk 0:01:48]} 17. Bf4 {[%clk 0:01:54.8]} 17... Nxf3+ {[%clk
0:01:24.1]} 18. Bxf3 {[%clk 0:01:54.7]} 18... Bxf3 {[%clk 0:01:23.7]} 19. Qxf3
{[%clk 0:01:55.3]} 19... Qd7 {[%clk 0:01:05.3]} 20. Rac1 {[%clk 0:01:52.2]}
20... Rac8 {[%clk 0:01:01]} 21. Qb3 {[%clk 0:01:42.8]} 21... b6 {[%clk
0:00:53.4]} 22. Rc6 {[%clk 0:01:38.5]} 22... Rfd8 {[%clk 0:00:51.6]} 23. Qc2
{[%clk 0:01:22.9]} 23... Qg4 {[%clk 0:00:30.7]} 24. Bxc7 {[%clk 0:01:00.3]}
24... Rd7 {[%clk 0:00:30.7]} 25. h3 {[%clk 0:00:48.3]} 25... Qh5 {[%clk
0:00:22.9]} 26. d6 {[%clk 0:00:34.9]} 26... Be5 {[%clk 0:00:14]} 27. Rc1 {[%clk
0:00:24.5]} 27... Qg5 {[%clk 0:00:12.7]} 28. Qe4 {[%clk 0:00:17.7]} 28... Qf6
{[%clk 0:00:08.9]} 29. Bxb6 {[%clk 0:00:12.6]} 29... Re8 {[%clk 0:00:07.9]} 30.
Rc8 {[%clk 0:00:06.8]} 30... Qe6 {[%clk 0:00:08]} 31. Rxe8+ {[%clk 0:00:06.2]}
31... Qxe8 {[%clk 0:00:08.9]} 32. Qe3 {[%clk 0:00:03.9]} 32... Rxd6 {[%clk
0:00:05.8]} 33. Re1 {[%clk 0:00:04]} 33... Rxb6 {[%clk 0:00:05.3]} 34. Qxe5
{[%clk 0:00:04]} 34... Re6 {[%clk 0:00:05.8]} 0-1

[Event "*** SCC Grand Prix: Titled Tuesday Blitz"]
[Site "Chess.com"]
[Date "2020.07.07"]
[Round "3"]
[White "tamarozi99"]
[Black "Belka1989"]
[Result "0-1"]
[WhiteElo "1979"]
[BlackElo "2280"]
[TimeControl "180+1"]
[EndTime "10:29:14 PDT"]
[Termination "Belka1989 won on time"]

1. e4 {[%clk 0:03:00.9]} 1... e5 {[%clk 0:02:58.9]} 2. Nf3 {[%clk 0:03:00.3]}
2... Nc6 {[%clk 0:02:59.4]} 3. Bb5 {[%clk 0:03:00.4]} 3... a6 {[%clk 0:02:59.4]}
4. Ba4 {[%clk 0:03:00.1]} 4... f5 {[%clk 0:02:59.9]} 5. d3 {[%clk 0:02:57.8]}
5... Nf6 {[%clk 0:02:59.5]} 6. Nc3 {[%clk 0:02:46.6]} 6... d6 {[%clk 0:02:58.8]}
7. a3 {[%clk 0:02:30.3]} 7... Be7 {[%clk 0:02:53.7]} 8. Bb3 {[%clk 0:02:30.1]}
8... fxe4 {[%clk 0:02:47.7]} 9. dxe4 {[%clk 0:02:27.6]} 9... Bg4 {[%clk
0:02:47.1]} 10. Be3 {[%clk 0:01:55.4]} 10... Qd7 {[%clk 0:02:23.9]} 11. h3
{[%clk 0:01:54.5]} 11... Bh5 {[%clk 0:02:22.1]} 12. Qd2 {[%clk 0:01:33.6]} 12...
Bxf3 {[%clk 0:01:39.7]} 13. gxf3 {[%clk 0:01:33.1]} 13... O-O-O {[%clk
0:01:36.4]} 14. O-O-O {[%clk 0:01:24]} 14... Rhf8 {[%clk 0:01:28.5]} 15. f4
{[%clk 0:01:08.1]} 15... exf4 {[%clk 0:01:05.9]} 16. Bxf4 {[%clk 0:01:06.9]}
16... Nh5 {[%clk 0:01:06.2]} 17. Be3 {[%clk 0:00:51.6]} 17... Ne5 {[%clk
0:00:58]} 18. f4 {[%clk 0:00:38.1]} 18... Nf3 {[%clk 0:00:30.9]} 19. Qg2 {[%clk
0:00:19.8]} 19... Nxf4 {[%clk 0:00:28.1]} 20. Bxf4 {[%clk 0:00:14.8]} 20... Rxf4
{[%clk 0:00:29]} 21. Rhf1 {[%clk 0:00:12.6]} 21... Rdf8 {[%clk 0:00:23.1]} 22.
Nd5 {[%clk 0:00:12]} 22... Bg5 {[%clk 0:00:19.3]} 23. Nxf4 {[%clk 0:00:10]}
23... Bxf4+ {[%clk 0:00:14.3]} 24. Kb1 {[%clk 0:00:10]} 24... Ne5 {[%clk
0:00:14.5]} 25. Qxg7 {[%clk 0:00:09.1]} 25... Qxg7 {[%clk 0:00:14.2]} 26. Rg1
{[%clk 0:00:08]} 26... Qe7 {[%clk 0:00:13.9]} 27. Rgf1 {[%clk 0:00:05.2]} 27...
Bh6 {[%clk 0:00:13.2]} 28. Rfe1 {[%clk 0:00:03.7]} 28... Bg5 {[%clk 0:00:12.7]}
29. c3 {[%clk 0:00:03.6]} 29... Bh4 {[%clk 0:00:13.4]} 30. Re2 {[%clk
0:00:03.1]} 30... Rf2 {[%clk 0:00:13]} 31. Rdd2 {[%clk 0:00:02.4]} 31... Rxe2
{[%clk 0:00:13.4]} 32. Rxe2 {[%clk 0:00:02.6]} 32... Qg5 {[%clk 0:00:14.3]} 33.
Kc2 {[%clk 0:00:02]} 33... Qg1 {[%clk 0:00:13.4]} 34. Be6+ {[%clk 0:00:01.5]}
34... Kd8 {[%clk 0:00:13.1]} 35. Bf5 {[%clk 0:00:01.7]} 35... Qg5 {[%clk
0:00:10]} 0-1

[Event "*** SCC Grand Prix: Titled Tuesday Blitz"]
[Site "Chess.com"]
[Date "2020.07.07"]
[Round "3"]
[White "natelleka"]
[Black "Nikithebest"]
[Result "0-1"]
[WhiteElo "2112"]
[BlackElo "2474"]
[TimeControl "180+1"]
[EndTime "10:29:15 PDT"]
[Termination "Nikithebest won by resignation"]

1. e4 {[%clk 0:03:00.8]} 1... c5 {[%clk 0:02:59.8]} 2. Nf3 {[%clk 0:03:00.8]}
2... d6 {[%clk 0:03:00.2]} 3. d4 {[%clk 0:03:01]} 3... cxd4 {[%clk 0:03:00.6]}
4. Nxd4 {[%clk 0:03:01.5]} 4... Nf6 {[%clk 0:03:01.1]} 5. Nc3 {[%clk 0:03:01.7]}
5... g6 {[%clk 0:03:01.6]} 6. Be2 {[%clk 0:03:01.3]} 6... Bg7 {[%clk 0:03:00.5]}
7. O-O {[%clk 0:03:01.5]} 7... O-O {[%clk 0:03:00.8]} 8. Bg5 {[%clk 0:03:00.3]}
8... Nc6 {[%clk 0:02:58.3]} 9. Nb3 {[%clk 0:03:00.3]} 9... Be6 {[%clk 0:02:55]}
10. Re1 {[%clk 0:03:00.1]} 10... Rc8 {[%clk 0:02:41.2]} 11. Bf1 {[%clk
0:02:59.7]} 11... a5 {[%clk 0:02:35.4]} 12. a4 {[%clk 0:02:57.9]} 12... Nb4
{[%clk 0:02:34.2]} 13. Qd2 {[%clk 0:02:53.4]} 13... Bc4 {[%clk 0:02:20]} 14. f4
{[%clk 0:02:27.6]} 14... Bxf1 {[%clk 0:02:17]} 15. Kxf1 {[%clk 0:02:27.6]} 15...
Qc7 {[%clk 0:01:40.9]} 16. Rad1 {[%clk 0:02:04.5]} 16... Qc4+ {[%clk 0:01:37.3]}
17. Kg1 {[%clk 0:01:59.6]} 17... h6 {[%clk 0:01:10.5]} 18. Bh4 {[%clk 0:01:50]}
18... Rfe8 {[%clk 0:01:09.8]} 19. Nxa5 {[%clk 0:01:42.7]} 19... Qc5+ {[%clk
0:00:51.7]} 20. Kh1 {[%clk 0:01:24.7]} 20... Qxa5 {[%clk 0:00:51.8]} 21. Bxf6
{[%clk 0:01:21.5]} 21... Bxf6 {[%clk 0:00:51]} 22. Nd5 {[%clk 0:01:21.3]} 22...
Nc6 {[%clk 0:00:40]} 23. Nxf6+ {[%clk 0:01:03.8]} 23... exf6 {[%clk 0:00:40.9]}
24. Qxd6 {[%clk 0:01:04.1]} 24... Kg7 {[%clk 0:00:23.9]} 25. b3 {[%clk
0:00:54.8]} 25... Rcd8 {[%clk 0:00:23.8]} 26. Qa3 {[%clk 0:00:46.3]} 26... Rxd1
{[%clk 0:00:23.7]} 27. Rxd1 {[%clk 0:00:44.9]} 27... Rxe4 {[%clk 0:00:24.4]} 28.
Qc1 {[%clk 0:00:40.3]} 28... Qc3 {[%clk 0:00:22.9]} 29. h3 {[%clk 0:00:37.4]}
29... Qg3 {[%clk 0:00:21.3]} 30. Rf1 {[%clk 0:00:35.2]} 30... Nd4 {[%clk
0:00:20.5]} 31. Qd2 {[%clk 0:00:31]} 31... Ne2 {[%clk 0:00:17.1]} 32. Rf3 {[%clk
0:00:16.8]} 32... Qh4 {[%clk 0:00:17.4]} 33. Kh2 {[%clk 0:00:13.3]} 33... Re6
{[%clk 0:00:15]} 34. g3 {[%clk 0:00:13]} 34... Qh5 {[%clk 0:00:15.3]} 35. g4
{[%clk 0:00:13.1]} 35... Qc5 {[%clk 0:00:14.6]} 36. Rf2 {[%clk 0:00:11.3]} 36...
Qxf2+ {[%clk 0:00:14.3]} 0-1

[Event "*** SCC Grand Prix: Titled Tuesday Blitz"]
[Site "Chess.com"]
[Date "2020.07.07"]
[Round "3"]
[White "BocharovD"]
[Black "Aguiar94"]
[Result "1-0"]
[WhiteElo "2751"]
[BlackElo "2521"]
[TimeControl "180+1"]
[EndTime "10:29:17 PDT"]
[Termination "BocharovD won on time"]

1. c4 {[%clk 0:03:00.9]} 1... e6 {[%clk 0:02:59.6]} 2. Nf3 {[%clk 0:02:59.9]}
2... d5 {[%clk 0:02:58.8]} 3. e3 {[%clk 0:03:00]} 3... Nf6 {[%clk 0:02:54.3]} 4.
b3 {[%clk 0:02:44.5]} 4... a5 {[%clk 0:02:45.7]} 5. Nc3 {[%clk 0:02:42.3]} 5...
c6 {[%clk 0:02:44.8]} 6. Bb2 {[%clk 0:02:39.5]} 6... Nbd7 {[%clk 0:02:43.7]} 7.
d4 {[%clk 0:02:35.2]} 7... Bd6 {[%clk 0:02:39.6]} 8. Bd3 {[%clk 0:02:34.6]} 8...
O-O {[%clk 0:02:38.7]} 9. O-O {[%clk 0:02:33.6]} 9... b6 {[%clk 0:02:33.4]} 10.
e4 {[%clk 0:02:33.1]} 10... dxe4 {[%clk 0:02:30.4]} 11. Nxe4 {[%clk 0:02:32.6]}
11... Nxe4 {[%clk 0:02:26.1]} 12. Bxe4 {[%clk 0:02:33]} 12... Bb7 {[%clk
0:02:22.2]} 13. Bc2 {[%clk 0:02:23.6]} 13... c5 {[%clk 0:02:17.2]} 14. dxc5
{[%clk 0:02:07.3]} 14... Bxc5 {[%clk 0:02:18.1]} 15. Qd3 {[%clk 0:02:06.6]}
15... f5 {[%clk 0:01:48.9]} 16. Rad1 {[%clk 0:02:05.2]} 16... Bc6 {[%clk
0:01:42.9]} 17. Nd4 {[%clk 0:01:53.1]} 17... Be4 {[%clk 0:01:19.1]} 18. Qe2
{[%clk 0:01:49.6]} 18... Bxc2 {[%clk 0:01:05.5]} 19. Qxe6+ {[%clk 0:01:44.9]}
19... Rf7 {[%clk 0:01:02.2]} 20. Nxc2 {[%clk 0:01:43.8]} 20... Qe8 {[%clk
0:01:02.6]} 21. Rfe1 {[%clk 0:01:36.9]} 21... Qxe6 {[%clk 0:00:58.6]} 22. Rxe6
{[%clk 0:01:37.8]} 22... Nf8 {[%clk 0:00:54.7]} 23. Re2 {[%clk 0:01:32.4]} 23...
f4 {[%clk 0:00:51.4]} 24. Ne1 {[%clk 0:01:27.8]} 24... a4 {[%clk 0:00:48.6]} 25.
Kf1 {[%clk 0:01:24.5]} 25... axb3 {[%clk 0:00:47.7]} 26. axb3 {[%clk 0:01:25.4]}
26... h6 {[%clk 0:00:23.5]} 27. Nf3 {[%clk 0:01:16.5]} 27... Rb8 {[%clk
0:00:11]} 28. Rd5 {[%clk 0:01:12.3]} 28... Ra8 {[%clk 0:00:08.8]} 29. Ne5 {[%clk
0:01:06.2]} 29... Re7 {[%clk 0:00:05.9]} 30. Nd3 {[%clk 0:01:03.6]} 30... Rxe2
{[%clk 0:00:04.6]} 31. Kxe2 {[%clk 0:01:04.5]} 31... Ra2 {[%clk 0:00:04.3]} 32.
Kf3 {[%clk 0:01:04.6]} 32... g5 {[%clk 0:00:03.7]} 33. h4 {[%clk 0:00:59.5]}
33... Ne6 {[%clk 0:00:03.1]} 34. hxg5 {[%clk 0:00:52.4]} 34... hxg5 {[%clk
0:00:04]} 35. Kg4 {[%clk 0:00:44.4]} 35... Kf7 {[%clk 0:00:03.8]} 36. Kf5 {[%clk
0:00:35.7]} 36... Be7 {[%clk 0:00:03.5]} 37. Ne5+ {[%clk 0:00:34.3]} 37... Ke8
{[%clk 0:00:03.9]} 38. Kxe6 {[%clk 0:00:31.3]} 38... Rxb2 {[%clk 0:00:04.2]} 39.
Rd7 {[%clk 0:00:30.5]} 39... Bc5 {[%clk 0:00:03.1]} 40. Rh7 {[%clk 0:00:27.5]}
1-0

[Event "*** SCC Grand Prix: Titled Tuesday Blitz"]
[Site "Chess.com"]
[Date "2020.07.07"]
[Round "3"]
[White "EvgenyT"]
[Black "Iskusnyh"]
[Result "1-0"]
[WhiteElo "2873"]
[BlackElo "2454"]
[TimeControl "180+1"]
[EndTime "10:29:17 PDT"]
[Termination "EvgenyT won on time"]

1. c4 {[%clk 0:02:59.3]} 1... c5 {[%clk 0:02:56.5]} 2. Nf3 {[%clk 0:02:58.6]}
2... g6 {[%clk 0:02:54.8]} 3. d4 {[%clk 0:02:57.4]} 3... cxd4 {[%clk 0:02:54.8]}
4. Nxd4 {[%clk 0:02:57.8]} 4... Nc6 {[%clk 0:02:54.9]} 5. e4 {[%clk 0:02:57.5]}
5... Nf6 {[%clk 0:02:55.3]} 6. Nc3 {[%clk 0:02:56.4]} 6... d6 {[%clk 0:02:55.4]}
7. Be2 {[%clk 0:02:55.2]} 7... Nxd4 {[%clk 0:02:54.9]} 8. Qxd4 {[%clk
0:02:55.3]} 8... Bg7 {[%clk 0:02:55.3]} 9. Bg5 {[%clk 0:02:55.2]} 9... O-O
{[%clk 0:02:54.5]} 10. Qe3 {[%clk 0:02:55.1]} 10... Qb6 {[%clk 0:02:44.5]} 11.
Qxb6 {[%clk 0:02:30]} 11... axb6 {[%clk 0:02:43.3]} 12. Rc1 {[%clk 0:02:29.1]}
12... h6 {[%clk 0:02:05]} 13. Be3 {[%clk 0:02:21.7]} 13... Ng4 {[%clk
0:01:49.7]} 14. Bxg4 {[%clk 0:01:32.4]} 14... Bxg4 {[%clk 0:01:48.5]} 15. Kd2
{[%clk 0:01:26.1]} 15... Be6 {[%clk 0:01:35.1]} 16. b3 {[%clk 0:01:22.6]} 16...
Bxc3+ {[%clk 0:01:27.7]} 17. Kxc3 {[%clk 0:01:20.7]} 17... Rxa2 {[%clk 0:01:28]}
18. Bxb6 {[%clk 0:01:20.1]} 18... f5 {[%clk 0:01:27]} 19. exf5 {[%clk
0:00:58.3]} 19... Bxf5 {[%clk 0:01:24.1]} 20. Ra1 {[%clk 0:00:56.9]} 20... Rc2+
{[%clk 0:01:23]} 21. Kb4 {[%clk 0:00:56.7]} 21... Be4 {[%clk 0:01:19.8]} 22.
Rhe1 {[%clk 0:00:47.8]} 22... Bxg2 {[%clk 0:01:05.9]} 23. Rxe7 {[%clk
0:00:47.1]} 23... Bc6 {[%clk 0:00:17.3]} 24. Bd4 {[%clk 0:00:41]} 24... Re8
{[%clk 0:00:17]} 25. Rg7+ {[%clk 0:00:31.5]} 25... Kf8 {[%clk 0:00:16.9]} 26.
Rxg6 {[%clk 0:00:31.5]} 26... Re4 {[%clk 0:00:14.3]} 27. Rxd6 {[%clk 0:00:28.3]}
27... Kf7 {[%clk 0:00:11.3]} 28. Be3 {[%clk 0:00:25.4]} 28... Rh4 {[%clk
0:00:10.2]} 29. Ra7 {[%clk 0:00:17.5]} 29... Bh1 {[%clk 0:00:04.9]} 30. Rd1
{[%clk 0:00:09.2]} 30... Bg2 {[%clk 0:00:04.2]} 31. Ra8 {[%clk 0:00:06.1]} 31...
Rxh2 {[%clk 0:00:03.4]} 32. Rc8 {[%clk 0:00:05]} 32... Bc6 {[%clk 0:00:02.3]}
33. Rd6 {[%clk 0:00:04.3]} 33... Rh3 {[%clk 0:00:01.2]} 34. Rc7+ {[%clk
0:00:04.2]} 1-0

[Event "*** SCC Grand Prix: Titled Tuesday Blitz"]
[Site "Chess.com"]
[Date "2020.07.07"]
[Round "3"]
[White "dolynachess"]
[Black "okriak"]
[Result "1-0"]
[WhiteElo "2447"]
[BlackElo "2718"]
[TimeControl "180+1"]
[EndTime "10:29:21 PDT"]
[Termination "dolynachess won by checkmate"]

1. d4 {[%clk 0:03:00.9]} 1... d5 {[%clk 0:02:58.3]} 2. c4 {[%clk 0:03:00.9]}
2... e6 {[%clk 0:02:56.1]} 3. Nf3 {[%clk 0:03:00.5]} 3... c6 {[%clk 0:02:56.2]}
4. g3 {[%clk 0:03:00]} 4... dxc4 {[%clk 0:02:55.3]} 5. Bg2 {[%clk 0:03:00.1]}
5... b5 {[%clk 0:02:55.3]} 6. O-O {[%clk 0:03:00.4]} 6... Bb7 {[%clk 0:02:55.2]}
7. Nc3 {[%clk 0:03:00.6]} 7... Nd7 {[%clk 0:02:54.3]} 8. e4 {[%clk 0:02:59.7]}
8... a6 {[%clk 0:02:50.5]} 9. a4 {[%clk 0:02:56.3]} 9... Ngf6 {[%clk 0:02:49.7]}
10. e5 {[%clk 0:02:56.4]} 10... Nd5 {[%clk 0:02:49.3]} 11. Ng5 {[%clk
0:02:56.5]} 11... Be7 {[%clk 0:02:38.1]} 12. Qh5 {[%clk 0:02:57]} 12... g6
{[%clk 0:02:35.4]} 13. Qh6 {[%clk 0:02:56.8]} 13... Bf8 {[%clk 0:02:33.9]} 14.
Qh3 {[%clk 0:02:56.3]} 14... Nxc3 {[%clk 0:02:22.9]} 15. bxc3 {[%clk 0:02:56]}
15... Bg7 {[%clk 0:02:22.6]} 16. Ne4 {[%clk 0:02:47.2]} 16... O-O {[%clk
0:02:21.4]} 17. Nd6 {[%clk 0:02:17.1]} 17... Qc7 {[%clk 0:02:09.2]} 18. Ba3
{[%clk 0:02:15.4]} 18... Rfd8 {[%clk 0:02:00.5]} 19. f4 {[%clk 0:02:11.2]} 19...
Nb6 {[%clk 0:01:56.8]} 20. g4 {[%clk 0:01:51.4]} 20... Nxa4 {[%clk 0:01:37.7]}
21. f5 {[%clk 0:01:51.1]} 21... Bc8 {[%clk 0:01:36.9]} 22. fxg6 {[%clk
0:01:30.4]} 22... fxg6 {[%clk 0:01:36.3]} 23. Rf7 {[%clk 0:01:30]} 23... Rd7
{[%clk 0:01:31.9]} 24. Raf1 {[%clk 0:01:25.1]} 24... Rxf7 {[%clk 0:01:16.1]} 25.
Rxf7 {[%clk 0:01:23.7]} 25... Qxf7 {[%clk 0:01:16.3]} 26. Nxf7 {[%clk
0:01:23.3]} 26... Kxf7 {[%clk 0:01:16.9]} 27. Bxc6 {[%clk 0:01:13.2]} 27... Ra7
{[%clk 0:01:16.9]} 28. Bd6 {[%clk 0:00:39]} 28... Kg8 {[%clk 0:01:13.8]} 29. g5
{[%clk 0:00:26.1]} 29... Rf7 {[%clk 0:00:57.6]} 30. d5 {[%clk 0:00:26.3]} 30...
Rf5 {[%clk 0:00:57.6]} 31. Qe3 {[%clk 0:00:20.1]} 31... Nb2 {[%clk 0:00:46.7]}
32. h4 {[%clk 0:00:19.4]} 32... Nd3 {[%clk 0:00:46.2]} 33. Qa7 {[%clk
0:00:19.3]} 33... Bxe5 {[%clk 0:00:31.9]} 34. Qb8 {[%clk 0:00:18]} 34... Bxd6
{[%clk 0:00:30.8]} 35. Qxd6 {[%clk 0:00:17.1]} 35... exd5 {[%clk 0:00:23.9]} 36.
Bxd5+ {[%clk 0:00:16.6]} 36... Kg7 {[%clk 0:00:23.8]} 37. Qc7+ {[%clk
0:00:15.9]} 37... Kf8 {[%clk 0:00:19.9]} 38. Qxc8+ {[%clk 0:00:15.5]} 38... Ke7
{[%clk 0:00:20.4]} 39. Qc7+ {[%clk 0:00:15.9]} 39... Ke8 {[%clk 0:00:20.8]} 40.
Be6 {[%clk 0:00:14.8]} 40... Rf4 {[%clk 0:00:17.8]} 41. Qd7+ {[%clk 0:00:12.8]}
41... Kf8 {[%clk 0:00:17.9]} 42. Qd8+ {[%clk 0:00:12.4]} 42... Kg7 {[%clk
0:00:18.2]} 43. Qe7+ {[%clk 0:00:12.7]} 43... Kh8 {[%clk 0:00:17.4]} 44. Qe8+
{[%clk 0:00:12.9]} 44... Kg7 {[%clk 0:00:17.6]} 45. Qg8# {[%clk 0:00:13.2]} 1-0

[Event "*** SCC Grand Prix: Titled Tuesday Blitz"]
[Site "Chess.com"]
[Date "2020.07.07"]
[Round "3"]
[White "malandragem"]
[Black "FLamps8"]
[Result "0-1"]
[WhiteElo "2385"]
[BlackElo "2582"]
[TimeControl "180+1"]
[EndTime "10:29:21 PDT"]
[Termination "FLamps8 won by checkmate"]

1. a3 {[%clk 0:03:00.9]} 1... d5 {[%clk 0:02:56.8]} 2. Nf3 {[%clk 0:03:01]} 2...
Nc6 {[%clk 0:02:51.8]} 3. d4 {[%clk 0:03:00.5]} 3... Bf5 {[%clk 0:02:52.4]} 4.
c4 {[%clk 0:02:55.1]} 4... e6 {[%clk 0:02:45.5]} 5. e3 {[%clk 0:02:54.7]} 5...
Nf6 {[%clk 0:02:43.8]} 6. b4 {[%clk 0:02:54.2]} 6... Bd6 {[%clk 0:02:36.9]} 7.
c5 {[%clk 0:02:50.9]} 7... Be7 {[%clk 0:02:36]} 8. b5 {[%clk 0:02:50.4]} 8...
Nb8 {[%clk 0:02:35.7]} 9. Nbd2 {[%clk 0:02:43.6]} 9... a6 {[%clk 0:02:33.9]} 10.
Nh4 {[%clk 0:02:31.1]} 10... Bg6 {[%clk 0:02:31.5]} 11. Nxg6 {[%clk 0:02:30.8]}
11... hxg6 {[%clk 0:02:32.4]} 12. c6 {[%clk 0:02:19.4]} 12... bxc6 {[%clk
0:02:28.1]} 13. bxa6 {[%clk 0:02:19.3]} 13... Nxa6 {[%clk 0:02:21.4]} 14. Qc2
{[%clk 0:02:02.5]} 14... O-O {[%clk 0:01:45.1]} 15. Rb1 {[%clk 0:01:28]} 15...
c5 {[%clk 0:01:43.4]} 16. Bxa6 {[%clk 0:01:24.2]} 16... Rxa6 {[%clk 0:01:42.6]}
17. dxc5 {[%clk 0:01:24.6]} 17... Nd7 {[%clk 0:01:21.1]} 18. c6 {[%clk
0:00:41.6]} 18... Ne5 {[%clk 0:01:08.9]} 19. O-O {[%clk 0:00:41.1]} 19... Rxc6
{[%clk 0:01:07.2]} 20. Qa4 {[%clk 0:00:41.4]} 20... Qa8 {[%clk 0:01:02.4]} 21.
Qf4 {[%clk 0:00:38.3]} 21... Nc4 {[%clk 0:00:56.6]} 22. Nf3 {[%clk 0:00:29.9]}
22... Rb8 {[%clk 0:00:31.3]} 23. Rxb8+ {[%clk 0:00:25.3]} 23... Qxb8 {[%clk
0:00:32.2]} 24. a4 {[%clk 0:00:25.5]} 24... Qa7 {[%clk 0:00:30.6]} 25. Qg4
{[%clk 0:00:22.7]} 25... Bf6 {[%clk 0:00:23.7]} 26. e4 {[%clk 0:00:16.4]} 26...
dxe4 {[%clk 0:00:17.1]} 27. Qxe4 {[%clk 0:00:17.3]} 27... Qxa4 {[%clk
0:00:16.2]} 28. Bg5 {[%clk 0:00:16.3]} 28... Nb6 {[%clk 0:00:15.8]} 29. Qd3
{[%clk 0:00:14]} 29... Qc4 {[%clk 0:00:14.7]} 30. Qd1 {[%clk 0:00:12.8]} 30...
Qd5 {[%clk 0:00:14.5]} 31. Qb1 {[%clk 0:00:11]} 31... Bxg5 {[%clk 0:00:13.9]}
32. Nxg5 {[%clk 0:00:11.4]} 32... Qxg5 {[%clk 0:00:14]} 33. Rd1 {[%clk
0:00:12.3]} 33... Rd6 {[%clk 0:00:12.7]} 34. Rxd6 {[%clk 0:00:12.1]} 34... cxd6
{[%clk 0:00:13.6]} 35. h4 {[%clk 0:00:11.3]} 35... Qc5 {[%clk 0:00:13.4]} 36. g3
{[%clk 0:00:11]} 36... d5 {[%clk 0:00:13.5]} 37. Qa1 {[%clk 0:00:10.8]} 37... d4
{[%clk 0:00:12.9]} 38. Qa7 {[%clk 0:00:10.6]} 38... d3 {[%clk 0:00:11.6]} 39. h5
{[%clk 0:00:10.7]} 39... d2 {[%clk 0:00:11.3]} 40. h6 {[%clk 0:00:09.9]} 40...
d1=Q+ {[%clk 0:00:11.1]} 41. Kg2 {[%clk 0:00:10.8]} 41... Qcd5+ {[%clk
0:00:10.9]} 42. Kh3 {[%clk 0:00:10.4]} 42... Q1h1+ {[%clk 0:00:10.9]} 43. Kg4
{[%clk 0:00:10]} 43... Qf5# {[%clk 0:00:11.8]} 0-1